[Event "EWCCC Online Preliminary-C 2020"]
[Site "Online"]
[Date "2020.12.19"]
[Round "3.3"]
[White "Kalaiyalahan, Akshaya"]
[Black "Johannsdottir, Johanna Bjorg"]
[Result "0-1"]
[ECO "E62"]
[WhiteElo "2149"]
[BlackElo "1935"]
[Annotator "NA"]
[PlyCount "92"]
[EventDate "2020.12.19"]
[EventType "team-tourn"]
[EventCountry "NET"]
[SourceTitle "playchess.com"]
[Source "ChessBase"]
[SourceQuality "1"]
[TimeControl "900+5"]

1. Nf3 {[%emt 0:00:00]} Nf6 {[%emt 0:00:03]} 2. g3 {[%emt 0:00:02]} g6 {[%emt 0:00:01]} 3. Bg2 {[%emt 0:00:02]} Bg7 {[%emt 0:00:01]} 4. O-O {[%emt 0:00:01]} O-O {[%emt 0:00:02]} 5. d4 {[%emt 0:00:06]} c6 {[%emt 0:00:02]} 6. c4 {[%emt 0:00:05]} d6 {[%emt 0:00:05]} 7. Nc3 {[%emt 0:00:08]} Qa5 {[%emt 0:00:03]} 8. e4 {[%emt 0:01:01]} e5 {[%emt 0:00:36]} 9. d5 {[%emt 0:00:42]} cxd5 {[%emt 0:00:17]} 10. cxd5 {[%emt 0:00:14]} b5 {[%emt 0:00:15]} 11. Nd2 {[%emt 0:00:41]} Nbd7 {[%emt 0:00:30]} 12. Nb3 {[%emt 0:03:31]} Qb4 {[%emt 0:00:58]} 13. a3 {[%emt 0:01:52]} Qc4 {[%emt 0:00:04]} 14. Na5 {[%emt 0:00:37]} Qc7 {[%emt 0:00:54]} 15. Nc6 {[%emt 0:00:13]} a6 {[%emt 0:01:02]} 16. Ne7+ {[%emt 0:02:13]} Kh8 {[%emt 0:00:04]} 17. Nxc8 {[%emt 0:00:03]} Rfxc8 {[%emt 0:00:47]} 18. Be3 {[%emt 0:00:10]} Nb6 {[%emt 0:00:53]} 19. Rc1 {[%emt 0:01:59]} Nc4 {[%emt 0:00:17]} 20. Qe2 {[%emt 0:00:11]} Qd7 {[%emt 0:00:42]} 21. h3 {[%emt 0:01:28]} a5 {[%emt 0:00:37]} 22. Nb1 {[%emt 0:00:25]} a4 {[%emt 0:01:27]} 23. Nc3 {[%emt 0:00:02]} Rab8 {[%emt 0:00:04]} 24. Na2 {[%emt 0:00:03]} Ng8 {[%emt 0:02:14]} 25. Nb4 {[%emt 0:00:36]} Ne7 {[%emt 0:00:03]} 26. f3 {[%emt 0:00:19]} f5 {[%emt 0:00:16]} 27. Bf2 {[%emt 0:00:11]} Bh6 {[%emt 0:00:29]} 28. Rcd1 {[%emt 0:00:03]} fxe4 {[%emt 0:01:58]} 29. fxe4 {[%emt 0:00:02]} Rf8 {[%emt 0:00:03]} 30. Kh2 {[%emt 0:00:04]} Rf6 {[%emt 0:00:49]} 31. h4 {[%emt 0:00:05]} Rbf8 {[%emt 0:00:06]} 32. Bh3 {[%emt 0:00:04]} Qe8 {[%emt 0:01:00]} 33. Nd3 {[%emt 0:00:07]} Nc8 {[%emt 0:00:17]} 34. Bg2 {[%emt 0:00:10]} N8b6 {[%emt 0:00:16]} 35. Bg1 {[%emt 0:00:08]} Nd7 {[%emt 0:00:06]} 36. Rxf6 {[%emt 0:00:02]} Nxf6 {[%emt 0:00:07]} 37. g4 {[%emt 0:00:05]} Bf4+ {[%emt 0:00:20]} 38. Nxf4 {[%emt 0:00:02]} exf4 {[%emt 0:00:01]} 39. Bf3 {[%emt 0:00:08]} Nd7 {[%emt 0:00:02]} 40. Bd4+ {[%emt 0:00:02]} Nde5 {[%emt 0:00:01]} 41. Kg2 {[%emt 0:00:14]} Qe7 {[%emt 0:00:03]} 42. Rh1 {[%emt 0:00:05]} Kg8 {[%emt 0:00:01]} 43. Kf1 {[%emt 0:00:05]} Rc8 {[%emt 0:00:04]} 44. Kg2 {[%emt 0:00:04]} Qd7 {[%emt 0:00:29]} 45. h5 {[%emt 0:00:04]} Ne3+ {[%emt 0:00:02]} 46. Bxe3 {[%emt 0:00:04]} fxe3 {[%emt 0:00:01]} 0-1

[Event "EWCCC Online Preliminary-C 2020"]
[Site "Online"]
[Date "2020.12.19"]
[Round "3.3"]
[White "Gretarsdottir, Lilja"]
[Black "Head, Louise"]
[Result "1/2-1/2"]
[ECO "B17"]
[WhiteElo "1984"]
[BlackElo "2090"]
[Annotator "NA"]
[PlyCount "98"]
[EventDate "2020.12.19"]
[EventType "team-tourn"]
[EventCountry "NET"]
[SourceTitle "playchess.com"]
[Source "ChessBase"]
[SourceQuality "1"]
[TimeControl "900+5"]

1. e4 {[%emt 0:00:02]} c6 {[%emt 0:00:04]} 2. d4 {[%emt 0:00:05]} d5 {[%emt 0:00:02]} 3. Nc3 {[%emt 0:00:07]} dxe4 {[%emt 0:00:02]} 4. Nxe4 {[%emt 0:00:03]} Nd7 {[%emt 0:00:02]} 5. Nf3 {[%emt 0:00:09]} Ngf6 {[%emt 0:00:03]} 6. Nxf6+ {[%emt 0:00:27]} Nxf6 {[%emt 0:00:03]} 7. h3 {[%emt 0:00:23]} Bf5 {[%emt 0:00:18]} 8. Bc4 {[%emt 0:00:11]} e6 {[%emt 0:00:07]} 9. O-O {[%emt 0:00:04]} Bd6 {[%emt 0:00:56]} 10. Re1 {[%emt 0:00:34]} O-O {[%emt 0:00:07]} 11. Bg5 {[%emt 0:00:16]} h6 {[%emt 0:00:20]} 12. Bh4 {[%emt 0:00:03]} g5 {[%emt 0:00:38]} 13. Bg3 {[%emt 0:00:23]} Bxg3 {[%emt 0:00:42]} 14. fxg3 {[%emt 0:00:03]} Qd6 {[%emt 0:01:52]} 15. Ne5 {[%emt 0:00:29]} Nd7 {[%emt 0:01:56]} 16. c3 {[%emt 0:02:20]} Nxe5 {[%emt 0:00:15]} 17. Rxe5 {[%emt 0:00:05]} Kg7 {[%emt 0:00:36]} 18. g4 {[%emt 0:00:36]} Bg6 {[%emt 0:00:06]} 19. Qf3 {[%emt 0:02:03]} Rae8 {[%emt 0:01:09]} 20. Rae1 {[%emt 0:00:09]} Qd8 {[%emt 0:00:36]} 21. g3 {[%emt 0:00:36]} Qf6 {[%emt 0:00:10]} 22. Qe3 {[%emt 0:00:12]} Bh7 {[%emt 0:00:34]} 23. Bb3 {[%emt 0:01:20]} Qg6 {[%emt 0:00:20]} 24. Rf1 {[%emt 0:00:38]} Bg8 {[%emt 0:00:34]} 25. Qf2 {[%emt 0:03:00]} f6 {[%emt 0:00:35]} 26. Bc2 {[%emt 0:00:06]} fxe5 {[%emt 0:00:44]} 27. Bxg6 {[%emt 0:02:40]} Rxf2 {[%emt 0:00:08]} 28. Bxe8 {[%emt 0:00:05]} Rxb2 {[%emt 0:02:09]} 29. dxe5 {[%emt 0:00:03]} Rb5 {[%emt 0:00:03]} 30. c4 {[%emt 0:00:05]} Rxe5 {[%emt 0:00:12]} 31. Rb1 {[%emt 0:00:02]} b6 {[%emt 0:00:02]} 32. Bxc6 {[%emt 0:00:03]} Rc5 {[%emt 0:00:04]} 33. Bb5 {[%emt 0:00:02]} e5 {[%emt 0:00:04]} 34. Kf2 {[%emt 0:00:01]} Bxc4 {[%emt 0:00:02]} 35. Bxc4 {[%emt 0:00:06]} Rxc4 {[%emt 0:00:01]} 36. Rd1 {[%emt 0:00:06]} Rc2+ {[%emt 0:00:10]} 37. Ke3 {[%emt 0:00:02]} Rxa2 {[%emt 0:00:12]} 38. Rd7+ {[%emt 0:00:02]} Kf6 {[%emt 0:00:03]} 39. Rd6+ {[%emt 0:00:01]} Kf7 {[%emt 0:00:01]} 40. Rxh6 {[%emt 0:00:02]} b5 {[%emt 0:00:15]} 41. Ke4 {[%emt 0:00:02]} b4 {[%emt 0:00:25]} 42. Kf5 {[%emt 0:00:05]} Rf2+ {[%emt 0:00:21]} 43. Kxe5 {[%emt 0:00:06]} b3 {[%emt 0:00:02]} 44. Rh7+ {[%emt 0:00:02]} Kg6 {[%emt 0:00:02]} 45. Rxa7 {[%emt 0:00:02]} Rf3 {[%emt 0:00:03]} 46. Ra6+ {[%emt 0:00:05]} Kg7 {[%emt 0:00:01]} 47. Ra7+ {[%emt 0:00:01]} Kg6 {[%emt 0:00:02]} 48. Ra6+ {[%emt 0:00:02]} Kg7 {[%emt 0:00:08]} 49. Ra7+ {[%emt 0:00:01]} Kg6 {[%emt 0:00:56]} 1/2-1/2

[Event "EWCCC Online Preliminary-C 2020"]
[Site "Online"]
[Date "2020.12.19"]
[Round "3.4"]
[White "De Seroux, Camille"]
[Black "Broly, Mathilde"]
[Result "1-0"]
[ECO "C25"]
[WhiteElo "2137"]
[BlackElo "2150"]
[Annotator "NA"]
[PlyCount "89"]
[EventDate "2020.12.19"]
[EventType "team-tourn"]
[EventCountry "NET"]
[SourceTitle "playchess.com"]
[Source "ChessBase"]
[SourceQuality "1"]
[TimeControl "900+5"]

1. e4 {[%emt 0:00:00]} e5 {[%emt 0:00:08]} 2. Nc3 {[%emt 0:00:03]} Nc6 {[%emt 0:00:41]} 3. g3 {[%emt 0:00:04]} Bc5 {[%emt 0:01:03]} 4. Bg2 {[%emt 0:00:05]} d6 {[%emt 0:00:02]} 5. Nge2 {[%emt 0:00:10]} Nge7 {[%emt 0:00:38]} 6. O-O {[%emt 0:00:07]} Bg4 {[%emt 0:00:19]} 7. h3 {[%emt 0:00:28]} Be6 {[%emt 0:01:05]} 8. Na4 {[%emt 0:00:21]} Qd7 {[%emt 0:01:26]} 9. Kh2 {[%emt 0:00:40]} g5 {[%emt 0:01:41]} 10. c3 {[%emt 0:01:29]} Bb6 {[%emt 0:00:23]} 11. d4 {[%emt 0:00:26]} Bc4 {[%emt 0:00:17]} 12. Nxb6 {[%emt 0:01:33]} axb6 {[%emt 0:00:07]} 13. d5 {[%emt 0:00:13]} Na7 {[%emt 0:00:32]} 14. Bxg5 {[%emt 0:00:25]} Rg8 {[%emt 0:00:55]} 15. h4 {[%emt 0:00:48]} Qg4 {[%emt 0:00:28]} 16. Ng1 {[%emt 0:02:17]} Rxg5 {[%emt 0:00:44]} 17. hxg5 {[%emt 0:00:04]} Qxg5 {[%emt 0:00:04]} 18. Re1 {[%emt 0:00:18]} Bb5 {[%emt 0:00:18]} 19. Bh3 {[%emt 0:01:31]} h5 {[%emt 0:00:16]} 20. Nf3 {[%emt 0:00:40]} Qf6 {[%emt 0:00:03]} 21. a4 {[%emt 0:00:43]} Bd7 {[%emt 0:00:14]} 22. Bxd7+ {[%emt 0:00:16]} Kxd7 {[%emt 0:00:04]} 23. Kg2 {[%emt 0:01:17]} Ng6 {[%emt 0:00:29]} 24. Rh1 {[%emt 0:00:21]} Rg8 {[%emt 0:00:42]} 25. Kf1 {[%emt 0:00:54]} h4 {[%emt 0:01:07]} 26. Nxh4 {[%emt 0:00:50]} Nxh4 {[%emt 0:00:10]} 27. gxh4 {[%emt 0:00:27]} Qf4 {[%emt 0:00:04]} 28. Qd3 {[%emt 0:00:21]} Nc8 {[%emt 0:00:24]} 29. Qe3 {[%emt 0:00:04]} Qg4 {[%emt 0:00:11]} 30. Qh3 {[%emt 0:00:02]} f5 {[%emt 0:00:32]} 31. Qxg4 {[%emt 0:00:03]} fxg4 {[%emt 0:00:05]} 32. Ke2 {[%emt 0:00:04]} Ne7 {[%emt 0:00:04]} 33. Ke3 {[%emt 0:00:01]} Rf8 {[%emt 0:00:09]} 34. Rag1 {[%emt 0:00:03]} Rf3+ {[%emt 0:00:05]} 35. Ke2 {[%emt 0:00:05]} Rf4 {[%emt 0:00:01]} 36. Kd3 {[%emt 0:00:28]} Rf3+ {[%emt 0:00:24]} 37. Kc4 {[%emt 0:00:02]} Rf4 {[%emt 0:00:04]} 38. Re1 {[%emt 0:00:02]} Rxf2 {[%emt 0:00:13]} 39. h5 {[%emt 0:00:01]} g3 {[%emt 0:00:16]} 40. h6 {[%emt 0:00:03]} g2 {[%emt 0:00:03]} 41. Rhg1 {[%emt 0:00:06]} Rxb2 {[%emt 0:00:05]} 42. h7 {[%emt 0:00:04]} Ng6 {[%emt 0:00:02]} 43. Re3 {[%emt 0:00:02]} c6 {[%emt 0:00:12]} 44. Rg3 {[%emt 0:00:06]} Nf4 {[%emt 0:00:03]} 45. Rg7+ {[%emt 0:00:10]} 1-0

[Event "EWCCC Online Preliminary-C 2020"]
[Site "Online"]
[Date "2020.12.19"]
[Round "3.4"]
[White "Moingt, Anne"]
[Black "Heinatz, Maria"]
[Result "0-1"]
[ECO "B92"]
[WhiteElo "2076"]
[BlackElo "1941"]
[Annotator "NA"]
[PlyCount "112"]
[EventDate "2020.12.19"]
[EventType "team-tourn"]
[EventCountry "NET"]
[SourceTitle "playchess.com"]
[Source "ChessBase"]
[SourceQuality "1"]
[TimeControl "900+5"]

1. e4 {[%emt 0:00:00]} c5 {[%emt 0:00:03]} 2. Nf3 {[%emt 0:00:06]} d6 {[%emt 0:00:02]} 3. d4 {[%emt 0:00:02]} cxd4 {[%emt 0:00:02]} 4. Nxd4 {[%emt 0:00:01]} Nf6 {[%emt 0:00:01]} 5. Nc3 {[%emt 0:00:03]} a6 {[%emt 0:00:02]} 6. Be2 {[%emt 0:00:02]} e5 {[%emt 0:00:03]} 7. Nb3 {[%emt 0:00:03]} Be7 {[%emt 0:00:02]} 8. O-O {[%emt 0:00:03]} O-O {[%emt 0:00:08]} 9. Be3 {[%emt 0:00:10]} Be6 {[%emt 0:00:12]} 10. f3 {[%emt 0:00:14]} Nbd7 {[%emt 0:00:21]} 11. Rf2 {[%emt 0:00:35]} Qc7 {[%emt 0:00:31]} 12. Bf1 {[%emt 0:00:38]} Nc5 {[%emt 0:00:40]} 13. Rd2 {[%emt 0:00:38]} Rfd8 {[%emt 0:00:16]} 14. Nxc5 {[%emt 0:02:05]} dxc5 {[%emt 0:00:04]} 15. Nd5 {[%emt 0:00:02]} Bxd5 {[%emt 0:00:52]} 16. exd5 {[%emt 0:00:03]} c4 {[%emt 0:00:24]} 17. c3 {[%emt 0:00:19]} Bc5 {[%emt 0:00:15]} 18. Bxc5 {[%emt 0:01:30]} Qxc5+ {[%emt 0:00:04]} 19. Kh1 {[%emt 0:00:01]} Rac8 {[%emt 0:00:45]} 20. b3 {[%emt 0:02:34]} cxb3 {[%emt 0:02:06]} 21. c4 {[%emt 0:00:02]} bxa2 {[%emt 0:00:28]} 22. Raxa2 {[%emt 0:00:04]} Ne8 {[%emt 0:01:13]} 23. Qe1 {[%emt 0:00:12]} Nd6 {[%emt 0:02:24]} 24. Rdc2 {[%emt 0:01:45]} Re8 {[%emt 0:00:14]} 25. Ra5 {[%emt 0:00:27]} b5 {[%emt 0:00:29]} 26. Rxa6 {[%emt 0:00:13]} bxc4 {[%emt 0:00:26]} 27. Ra5 {[%emt 0:00:05]} Qd4 {[%emt 0:00:37]} 28. Ra6 {[%emt 0:00:33]} Red8 {[%emt 0:00:21]} 29. Rd2 {[%emt 0:00:46]} Qc3 {[%emt 0:00:03]} 30. Qd1 {[%emt 0:00:02]} Ra8 {[%emt 0:00:37]} 31. Rda2 {[%emt 0:00:18]} Rxa6 {[%emt 0:00:10]} 32. Rxa6 {[%emt 0:00:02]} Nf5 {[%emt 0:00:17]} 33. d6 {[%emt 0:00:46]} Ne3 {[%emt 0:00:34]} 34. Qe2 {[%emt 0:00:02]} Nxf1 {[%emt 0:00:03]} 35. Qxf1 {[%emt 0:00:03]} Qd4 {[%emt 0:00:09]} 36. h3 {[%emt 0:00:33]} g6 {[%emt 0:00:21]} 37. Rc6 {[%emt 0:00:11]} Rxd6 {[%emt 0:00:08]} 38. Rxd6 {[%emt 0:00:07]} Qxd6 {[%emt 0:00:01]} 39. Qxc4 {[%emt 0:00:02]} Kg7 {[%emt 0:00:10]} 40. Qe4 {[%emt 0:00:17]} Qd4 {[%emt 0:00:33]} 41. Qb7 {[%emt 0:00:05]} h5 {[%emt 0:00:13]} 42. Kh2 {[%emt 0:00:14]} h4 {[%emt 0:00:04]} 43. Qa8 {[%emt 0:00:18]} Qf4+ {[%emt 0:00:03]} 44. Kg1 {[%emt 0:00:05]} Qd4+ {[%emt 0:00:12]} 45. Kh2 {[%emt 0:00:03]} f5 {[%emt 0:00:21]} 46. Qe8 {[%emt 0:00:19]} Qf4+ {[%emt 0:00:08]} 47. Kg1 {[%emt 0:00:04]} e4 {[%emt 0:00:10]} 48. Qe7+ {[%emt 0:00:11]} Kh6 {[%emt 0:00:11]} 49. Qf8+ {[%emt 0:00:06]} Kh5 {[%emt 0:00:03]} 50. Qh8+ {[%emt 0:00:07]} Qh6 {[%emt 0:00:10]} 51. Qe5 {[%emt 0:00:04]} exf3 {[%emt 0:00:11]} 52. gxf3 {[%emt 0:00:09]} Qg5+ {[%emt 0:00:06]} 53. Kf2 {[%emt 0:00:19]} Qd2+ {[%emt 0:00:08]} 54. Kg1 {[%emt 0:00:04]} Kg5 {[%emt 0:00:14]} 55. Qe7+ {[%emt 0:00:33]} Kf4 {[%emt 0:00:19]} 56. Qxh4+ {[%emt 0:00:02]} Kxf3 {[%emt 0:00:02]} 0-1

[Event "EWCCC Online Preliminary-C 2020"]
[Site "Online"]
[Date "2020.12.19"]
[Round "3.4"]
[White "Kurapova, Olga"]
[Black "Nicoara, Malina"]
[Result "1/2-1/2"]
[ECO "B03"]
[WhiteElo "1927"]
[BlackElo "2066"]
[Annotator "NA"]
[PlyCount "110"]
[EventDate "2020.12.19"]
[EventType "team-tourn"]
[EventCountry "NET"]
[SourceTitle "playchess.com"]
[Source "ChessBase"]
[SourceQuality "1"]
[TimeControl "900+5"]

1. e4 {[%emt 0:00:00]} Nf6 {[%emt 0:00:04]} 2. e5 {[%emt 0:00:03]} Nd5 {[%emt 0:00:02]} 3. d4 {[%emt 0:00:03]} d6 {[%emt 0:00:02]} 4. exd6 {[%emt 0:00:04]} cxd6 {[%emt 0:00:03]} 5. c4 {[%emt 0:00:07]} Nb6 {[%emt 0:00:02]} 6. Nc3 {[%emt 0:00:13]} g6 {[%emt 0:00:03]} 7. Be3 {[%emt 0:00:04]} Bg7 {[%emt 0:00:04]} 8. Rc1 {[%emt 0:00:05]} Nc6 {[%emt 0:00:06]} 9. Be2 {[%emt 0:01:12]} O-O {[%emt 0:00:04]} 10. h4 {[%emt 0:00:48]} d5 {[%emt 0:00:26]} 11. c5 {[%emt 0:00:08]} Nc4 {[%emt 0:00:05]} 12. Bxc4 {[%emt 0:01:42]} dxc4 {[%emt 0:00:04]} 13. Nge2 {[%emt 0:00:04]} Bg4 {[%emt 0:00:53]} 14. f3 {[%emt 0:00:31]} Bf5 {[%emt 0:00:03]} 15. Ne4 {[%emt 0:01:25]} Bxe4 {[%emt 0:01:00]} 16. fxe4 {[%emt 0:00:06]} Qa5+ {[%emt 0:00:46]} 17. Nc3 {[%emt 0:00:59]} Rad8 {[%emt 0:00:17]} 18. d5 {[%emt 0:00:32]} Ne5 {[%emt 0:00:15]} 19. O-O {[%emt 0:00:07]} Nd3 {[%emt 0:00:26]} 20. Rc2 {[%emt 0:00:19]} Nxc5 {[%emt 0:00:04]} 21. Qe2 {[%emt 0:01:42]} Nd3 {[%emt 0:00:52]} 22. h5 {[%emt 0:01:06]} b5 {[%emt 0:00:39]} 23. a3 {[%emt 0:00:29]} a6 {[%emt 0:01:11]} 24. Nd1 {[%emt 0:00:49]} Rc8 {[%emt 0:00:43]} 25. Nf2 {[%emt 0:00:23]} Nxf2 {[%emt 0:00:32]} 26. Qxf2 {[%emt 0:00:06]} Qc7 {[%emt 0:00:13]} 27. Bd4 {[%emt 0:00:13]} Bxd4 {[%emt 0:00:30]} 28. Qxd4 {[%emt 0:00:04]} Qc5 {[%emt 0:00:02]} 29. Qxc5 {[%emt 0:00:08]} Rxc5 {[%emt 0:00:02]} 30. hxg6 {[%emt 0:00:03]} hxg6 {[%emt 0:00:06]} 31. b3 {[%emt 0:00:13]} Rd8 {[%emt 0:00:25]} 32. Rfc1 {[%emt 0:00:15]} Rdc8 {[%emt 0:00:02]} 33. Kf2 {[%emt 0:00:08]} Kf8 {[%emt 0:00:03]} 34. Ke3 {[%emt 0:00:05]} e5 {[%emt 0:01:06]} 35. dxe6 {[%emt 0:00:16]} fxe6 {[%emt 0:00:02]} 36. bxc4 {[%emt 0:00:05]} bxc4 {[%emt 0:00:37]} 37. Kd4 {[%emt 0:00:07]} Ra5 {[%emt 0:00:32]} 38. Rxc4 {[%emt 0:00:14]} Rxc4+ {[%emt 0:00:06]} 39. Rxc4 {[%emt 0:00:02]} Rxa3 {[%emt 0:00:02]} 40. Ke5 {[%emt 0:00:03]} Ra2 {[%emt 0:00:42]} 41. Kxe6 {[%emt 0:00:07]} Rxg2 {[%emt 0:00:05]} 42. Ra4 {[%emt 0:00:10]} Kg7 {[%emt 0:00:31]} 43. Rxa6 {[%emt 0:00:03]} Re2 {[%emt 0:00:10]} 44. e5 {[%emt 0:00:04]} Re1 {[%emt 0:00:11]} 45. Kd6 {[%emt 0:00:10]} g5 {[%emt 0:00:21]} 46. e6 {[%emt 0:00:05]} Kf6 {[%emt 0:00:12]} 47. Kd7 {[%emt 0:00:17]} g4 {[%emt 0:00:56]} 48. Rd6 {[%emt 0:00:41]} g3 {[%emt 0:01:52]} 49. Rd3 {[%emt 0:00:13]} g2 {[%emt 0:00:44]} 50. Rf3+ {[%emt 0:00:08]} Ke5 {[%emt 0:00:15]} 51. e7 {[%emt 0:00:27]} Rd1+ {[%emt 0:00:03]} 52. Kc6 {[%emt 0:00:06]} Rc1+ {[%emt 0:00:07]} 53. Kd7 {[%emt 0:00:03]} Rd1+ {[%emt 0:00:10]} 54. Kc6 {[%emt 0:00:09]} Rc1+ {[%emt 0:00:02]} 55. Kd7 {[%emt 0:00:08]} Rd1+ {[%emt 0:00:02]} 1/2-1/2

[Event "EWCCC Online Preliminary-C 2020"]
[Site "Online"]
[Date "2020.12.19"]
[Round "5.1"]
[White "Hrenic, Misa"]
[Black "Obolentseva, Alexandra"]
[Result "0-1"]
[ECO "B91"]
[WhiteElo "2020"]
[BlackElo "2305"]
[Annotator "NA"]
[PlyCount "76"]
[EventDate "2020.12.19"]
[EventType "team-tourn"]
[EventCountry "NET"]
[SourceTitle "playchess.com"]
[Source "ChessBase"]
[SourceQuality "1"]
[TimeControl "900+5"]

1. e4 {[%emt 0:00:00]} c5 {[%emt 0:00:04]} 2. Nf3 {[%emt 0:00:03]} d6 {[%emt 0:00:01]} 3. d4 {[%emt 0:00:02]} cxd4 {[%emt 0:00:02]} 4. Nxd4 {[%emt 0:00:01]} Nf6 {[%emt 0:00:02]} 5. Nc3 {[%emt 0:00:02]} a6 {[%emt 0:00:02]} 6. g3 {[%emt 0:01:35]} e5 {[%emt 0:00:13]} 7. Nb3 {[%emt 0:00:26]} b5 {[%emt 0:00:11]} 8. a3 {[%emt 0:00:04]} Bb7 {[%emt 0:00:03]} 9. Bg2 {[%emt 0:00:02]} Be7 {[%emt 0:00:11]} 10. O-O {[%emt 0:00:14]} O-O {[%emt 0:00:04]} 11. Qe2 {[%emt 0:00:57]} Nbd7 {[%emt 0:00:06]} 12. Bg5 {[%emt 0:00:08]} Rc8 {[%emt 0:00:31]} 13. Rfd1 {[%emt 0:00:47]} Qc7 {[%emt 0:00:11]} 14. Bxf6 {[%emt 0:01:44]} Nxf6 {[%emt 0:00:03]} 15. Rd3 {[%emt 0:00:05]} Qb6 {[%emt 0:00:08]} 16. Rad1 {[%emt 0:00:07]} a5 {[%emt 0:00:26]} 17. Nb1 {[%emt 0:04:14]} Rc4 {[%emt 0:00:26]} 18. Rc3 {[%emt 0:01:25]} Rfc8 {[%emt 0:00:26]} 19. N3d2 {[%emt 0:00:38]} Rxc3 {[%emt 0:00:04]} 20. bxc3 {[%emt 0:00:44]} Ba6 {[%emt 0:00:03]} 21. Qd3 {[%emt 0:01:09]} Nd7 {[%emt 0:00:12]} 22. Qd5 {[%emt 0:00:12]} Nc5 {[%emt 0:00:14]} 23. Nb3 {[%emt 0:00:15]} Bb7 {[%emt 0:00:09]} 24. Qd2 {[%emt 0:00:21]} Nxe4 {[%emt 0:00:03]} 25. Qe1 {[%emt 0:00:29]} Nc5 {[%emt 0:00:29]} 26. Nxc5 {[%emt 0:00:08]} Rxc5 {[%emt 0:00:04]} 27. Bxb7 {[%emt 0:00:20]} Qxb7 {[%emt 0:00:02]} 28. Rd3 {[%emt 0:00:12]} Qc6 {[%emt 0:00:07]} 29. Qe3 {[%emt 0:00:14]} f5 {[%emt 0:00:18]} 30. f3 {[%emt 0:00:36]} Bd8 {[%emt 0:01:03]} 31. Kh1 {[%emt 0:00:13]} h6 {[%emt 0:00:22]} 32. Qd2 {[%emt 0:00:02]} d5 {[%emt 0:00:11]} 33. Qe1 {[%emt 0:00:04]} e4 {[%emt 0:00:07]} 34. fxe4 {[%emt 0:00:07]} fxe4 {[%emt 0:00:02]} 35. Rd2 {[%emt 0:00:03]} Bf6 {[%emt 0:00:22]} 36. Rf2 {[%emt 0:00:03]} d4 {[%emt 0:00:34]} 37. Kg1 {[%emt 0:00:13]} dxc3 {[%emt 0:00:10]} 38. Qe3 {[%emt 0:00:03]} Rd5 {[%emt 0:00:08]} 0-1

[Event "EWCCC Online Preliminary-C 2020"]
[Site "Online"]
[Date "2020.12.19"]
[Round "5.1"]
[White "Heric, Meta"]
[Black "Schoene, Maria"]
[Result "0-1"]
[ECO "B23"]
[WhiteElo "1318"]
[BlackElo "2204"]
[Annotator "NA"]
[PlyCount "86"]
[EventDate "2020.12.19"]
[EventType "team-tourn"]
[EventCountry "NET"]
[SourceTitle "playchess.com"]
[Source "ChessBase"]
[SourceQuality "1"]
[TimeControl "900+5"]

1. e4 {[%emt 0:00:00]} c5 {[%emt 0:00:03]} 2. Nc3 {[%emt 0:00:10]} Nc6 {[%emt 0:00:15]} 3. f4 {[%emt 0:00:11]} d6 {[%emt 0:00:13]} 4. Nf3 {[%emt 0:00:04]} g6 {[%emt 0:00:06]} 5. Bb5 {[%emt 0:00:04]} Bg7 {[%emt 0:00:09]} 6. Bxc6+ {[%emt 0:00:16]} bxc6 {[%emt 0:00:03]} 7. O-O {[%emt 0:00:06]} e6 {[%emt 0:01:11]} 8. d3 {[%emt 0:00:09]} Ne7 {[%emt 0:00:05]} 9. Qe1 {[%emt 0:00:05]} O-O {[%emt 0:01:13]} 10. Qg3 {[%emt 0:00:18]} f5 {[%emt 0:00:17]} 11. e5 {[%emt 0:00:22]} d5 {[%emt 0:00:33]} 12. Qh3 {[%emt 0:00:19]} d4 {[%emt 0:00:09]} 13. Ne2 {[%emt 0:00:19]} Nd5 {[%emt 0:00:02]} 14. g4 {[%emt 0:00:34]} Qe7 {[%emt 0:00:52]} 15. c3 {[%emt 0:02:35]} Ba6 {[%emt 0:01:20]} 16. c4 {[%emt 0:01:43]} Ne3 {[%emt 0:00:04]} 17. Bxe3 {[%emt 0:00:04]} dxe3 {[%emt 0:00:02]} 18. Qg3 {[%emt 0:00:16]} Rfd8 {[%emt 0:00:23]} 19. Rad1 {[%emt 0:00:16]} Rd7 {[%emt 0:00:36]} 20. h4 {[%emt 0:00:16]} Rad8 {[%emt 0:00:33]} 21. h5 {[%emt 0:00:34]} fxg4 {[%emt 0:00:46]} 22. Qxg4 {[%emt 0:00:08]} gxh5 {[%emt 0:00:09]} 23. Qxh5 {[%emt 0:00:05]} Bxc4 {[%emt 0:00:07]} 24. Nc1 {[%emt 0:02:14]} Bxd3 {[%emt 0:00:25]} 25. Nxd3 {[%emt 0:00:07]} e2 {[%emt 0:00:09]} 26. f5 {[%emt 0:01:10]} exf5 {[%emt 0:00:44]} 27. Qxf5 {[%emt 0:00:07]} exf1=Q+ {[%emt 0:00:20]} 28. Kxf1 {[%emt 0:00:05]} c4 {[%emt 0:00:22]} 29. e6 {[%emt 0:00:15]} Rxd3 {[%emt 0:00:09]} 30. Rxd3 {[%emt 0:00:28]} cxd3 {[%emt 0:00:02]} 31. Ng5 {[%emt 0:00:09]} Rf8 {[%emt 0:00:11]} 32. Nf7 {[%emt 0:00:07]} Rxf7 {[%emt 0:00:01]} 33. exf7+ {[%emt 0:00:04]} Qxf7 {[%emt 0:00:01]} 34. Qxf7+ {[%emt 0:00:02]} Kxf7 {[%emt 0:00:02]} 35. Ke1 {[%emt 0:00:01]} Bxb2 {[%emt 0:00:08]} 36. Kd2 {[%emt 0:00:03]} h5 {[%emt 0:00:04]} 37. Kxd3 {[%emt 0:00:01]} h4 {[%emt 0:00:01]} 38. Ke2 {[%emt 0:00:02]} h3 {[%emt 0:00:02]} 39. Kf2 {[%emt 0:00:02]} c5 {[%emt 0:00:05]} 40. Kg3 {[%emt 0:00:03]} c4 {[%emt 0:00:01]} 41. Kxh3 {[%emt 0:00:02]} c3 {[%emt 0:00:01]} 42. Kg3 {[%emt 0:00:02]} c2 {[%emt 0:00:01]} 43. Kf3 {[%emt 0:00:02]} c1=Q {[%emt 0:00:03]} 0-1

[Event "EWCCC Online Preliminary-C 2020"]
[Site "Online"]
[Date "2020.12.19"]
[Round "5.2"]
[White "Houska, Jovanka"]
[Black "Hoang, Thanh Trang"]
[Result "0-1"]
[ECO "A90"]
[WhiteElo "2381"]
[BlackElo "2404"]
[Annotator "NA"]
[PlyCount "46"]
[EventDate "2020.12.19"]
[EventType "team-tourn"]
[EventCountry "NET"]
[SourceTitle "playchess.com"]
[Source "ChessBase"]
[SourceQuality "1"]
[TimeControl "900+5"]

1. d4 {[%emt 0:00:00]} e6 {[%emt 0:00:04]} 2. Nf3 {[%emt 0:00:10]} f5 {[%emt 0:00:03]} 3. g3 {[%emt 0:00:03]} Nf6 {[%emt 0:00:03]} 4. Bg2 {[%emt 0:00:03]} d5 {[%emt 0:00:11]} 5. O-O {[%emt 0:00:09]} Bd6 {[%emt 0:00:06]} 6. c4 {[%emt 0:00:04]} c6 {[%emt 0:00:04]} 7. Bf4 {[%emt 0:00:01]} Bxf4 {[%emt 0:00:11]} 8. gxf4 {[%emt 0:00:02]} O-O {[%emt 0:00:15]} 9. e3 {[%emt 0:00:18]} Qe7 {[%emt 0:00:11]} 10. Nc3 {[%emt 0:00:37]} Nbd7 {[%emt 0:00:42]} 11. c5 {[%emt 0:00:38]} b6 {[%emt 0:00:36]} 12. b4 {[%emt 0:00:03]} Ba6 {[%emt 0:02:57]} 13. Re1 {[%emt 0:00:25]} Ne4 {[%emt 0:00:08]} 14. Qc2 {[%emt 0:00:35]} Bc4 {[%emt 0:00:12]} 15. Na4 {[%emt 0:04:43]} a5 {[%emt 0:01:15]} 16. Nb2 {[%emt 0:00:25]} axb4 {[%emt 0:02:23]} 17. Nxc4 {[%emt 0:00:05]} dxc4 {[%emt 0:00:02]} 18. Qxc4 {[%emt 0:00:15]} bxc5 {[%emt 0:00:06]} 19. dxc5 {[%emt 0:00:32]} Ndxc5 {[%emt 0:00:58]} 20. Rac1 {[%emt 0:03:39]} Ra4 {[%emt 0:01:51]} 21. Ne5 {[%emt 0:00:15]} b3 {[%emt 0:00:20]} 22. Nxc6 {[%emt 0:00:04]} Qb7 {[%emt 0:00:41]} 23. Qxe6+ {[%emt 0:00:04]} Nxe6 {[%emt 0:00:03]} 0-1